Cogmind - Beta 13 @@@ ROGUE MODE // 2024.08.04 @ 12:41:44 Player: btracker Result: Self-destructed Performance ------------- Evolutions (2) 1000 Regions Visited (4) 800 Robots Destroyed (51) 255 Value Destroyed (1274) 1274 Prototype IDs (3) 60 Alien Tech Used (0) 0 Bonus (127) 127 TOTAL SCORE: 3516 Bonus ------- High Alert Combat Kills 127 Cogmind --------- Core Integrity 508/550 Matter 193/300 Energy 100/100 System Corruption 2% Temperature Cool (9) Movement Walking (190) Ox1 Location -8/Materials Parts ------- > --- POWER (1) -------- (None) > --- PROPULSION (4) --- Aluminum Leg Aluminum Leg > --- UTILITY (4) ------ Small Storage Unit Experimental Sensor Array Signal Interpreter > --- WEAPON (2) ------- Minigun Flak Cannon > --- INVENTORY (8) ---- Light Ion Engine Heat Sink Shock Rifle Spread Laser Flak Cannon Grenade Launcher Mini Grenade Launcher Plasma Cutter Peak State ------------ > --- POWER ------------ Ion Engine > --- PROPULSION ------- Aluminum Leg Aluminum Leg Aluminum Leg Improved Aluminum Leg > --- UTILITY ---------- Small Storage Unit Experimental Sensor Array Signal Interpreter Improved Targeting Computer > --- WEAPON ----------- Minigun Flak Cannon > --- INVENTORY -------- Light Ion Engine Heat Sink Shock Rifle Spread Laser Flak Cannon Grenade Launcher Mini Grenade Launcher Plasma Cutter [Rating: 26] Favorites ----------- Power Ion Engine Engine Ion Engine Power Core Light Nuclear Core Propulsion Aluminum Leg Leg Aluminum Leg Utility Small Storage Unit Device Sensor Array Storage Small Storage Unit Processor Signal Interpreter Weapon Light Assault Rifle Energy Gun Spread Laser Ballistic Gun Light Assault Rifle Ballistic Cannon Flak Cannon Launcher Mini Grenade Launcher Special Weapon Plasma Cutter Build | -11 -10 -9 -9 -8 ------- Run | Yrd Mat Mat Min Mat Slots Evolved 4 | . . 2 . 2 Power . | . . . . . Propulsion 2 | . . . . 2 Utility 2 | . . 2 . . Weapon . | . . . . . Parts Attached 51 | 6 10 19 12 4 Power 7 | 1 2 3 1 . Engine 6 | 1 2 2 1 . Core 1 | . . 1 . . Reactor . | . . . . . Propulsion 13 | 2 2 5 2 2 Treads . | . . . . . Leg 13 | 2 2 5 2 2 Wheel . | . . . . . Hover . | . . . . . Flight . | . . . . . Utility 7 | 1 1 3 2 . Device 3 | . 1 1 1 . Storage 1 | 1 . . . . Processor 3 | . . 2 1 . Hackware . | . . . . . Protection . | . . . . . Artifact . | . . . . . Weapon 24 | 2 5 8 7 2 Energy Gun 4 | 1 1 . 2 . Energy Cannon . | . . . . . Ballistic Gun 9 | 1 3 4 . 1 Ballistic Cannon 5 | . . 2 3 . Launcher 4 | . 1 2 1 . Special Weapon 2 | . . . 1 1 Impact Weapon . | . . . . . Slashing Weapon . | . . . . . Piercing Weapon . | . . . . . Special Melee Weapon . | . . . . . Unidentified Prototypes 1 | . . . 1 . Parts Lost 11 | . 3 3 1 4 Power 3 | . 1 1 . 1 Propulsion 4 | . 1 1 . 2 Utility 2 | . . . 1 1 Weapon 2 | . 1 1 . . Highest Loss Streak 4 | . 1 1 1 4 To Critical Strikes . | . . . . . Average Slot Usage (%) 95 | . 89 98 97 91 Engine 9 | . 9 9 11 8 Leg 24 | . 26 21 22 34 Device 13 | . 10 12 15 9 Storage 11 | . 14 11 11 9 Processor 14 | . . 20 15 17 Energy Gun 4 | . 2 . 8 . Ballistic Gun 8 | . 22 13 . 3 Ballistic Cannon 2 | . . 1 2 9 Launcher 2 | . 1 6 1 . Special Weapon 4 | . . . 9 . Naked Turns . | . . . . . Heaviest Build 23 | 13 14 23 23 20 Greatest Support 43 | 20 20 23 23 43 Greatest Overweight (x) 1 | . . 1 . . Average Overweight (x) . | . . . . . Largest Inventory Capacity 8 | 8 8 8 8 8 Average Capacity 7 | 7 8 8 8 8 Most Carried 8 | 4 8 8 8 8 Average Carried 7 | 1 6 7 7 7 Final Capacity 8 | 8 8 8 8 8 Final Carried 8 | 4 8 7 8 8 Class Distribution -------------------- 34% | Scavenger-Mutant 33% | Scavenger-Skirmisher 31% | Mutant Dominant Class ---------------- Mutant | -10/Materials Scavenger-Skirmisher | -9/Materials Scavenger-Mutant | -9/Mines Scavenger-Mutant | -8/Materials Resources | -11 -10 -9 -9 -8 ----------- Run | Yrd Mat Mat Min Mat Matter Collected 1137 | 199 281 438 219 . Remotely . | . . . . . Salvage Created 1373 | . 398 789 186 . Parts 112 | . 37 58 17 . Haulers Intercepted . | . . . . . Recyclers Shooed 6 | . 5 . 1 . Parts Field Recycled . | . . . . . Retrieved Matter . | . . . . . Parts Self-Destructed . | . . . . . Prevented . | . . . . . Kills | -11 -10 -9 -9 -8 ------- Run | Yrd Mat Mat Min Mat Combat Hostiles Destroyed 39 | . 11 19 9 . Guns 23 | . 10 12 1 . Cannons 11 | . . 3 8 . AOE 5 | . 1 4 . . Classes Destroyed 9 | . 5 4 . . Worker 2 | . . 1 1 . Tunneler 3 | . 1 1 1 . Recycler 2 | . 2 . . . Operator 1 | . . 1 . . Watcher 4 | . 2 2 . . Swarmer 12 | . 8 . 4 . Grunt 21 | . 3 13 5 . Duelist 1 | . . 1 . . Sentry 5 | . . 5 . . Best Kill Streak 4 | . 4 4 4 . Combat Bots Only 4 | . 3 3 4 . Max Kills in Single Turn 2 | . 2 2 2 . Gunslinging . | . . . . . Exploded 2 | . 1 2 . . Melee . | . . . . . Uniques/NPCs Destroyed . | . . . . . Combat | -11 -10 -9 -9 -8 -------- Run | Yrd Mat Mat Min Mat Hostile Shots Fired 227 | . 60 90 28 49 Missed 70 | . 18 36 5 11 Damage Taken 2162 | . 449 844 296 573 Core 337 | . 89 174 32 42 Absorbed by Shields . | . . . . . Core Remaining (%) 70 | 100 64 . 48 . Volleys Fired 149 | . 47 69 33 . Largest 2 | . 2 2 2 . Hottest 88 | . 60 88 88 . Shots Fired 252 | . 89 113 50 . Gun 172 | . 83 78 11 . Cannon 36 | . . 16 20 . Launcher 32 | . 6 19 7 . Special 12 | . . . 12 . Kinetic 189 | . 75 94 20 . Thermal 31 | . 8 . 23 . Explosive 29 | . 6 16 7 . Electromagnetic 3 | . . 3 . . Robot Hit Streak 14 | . 7 14 9 . Robot Miss Streak 26 | . 5 26 8 . Penetration Max . | . . . . . Secondary Targets 1 | . 1 . . . Max Gunslinging Chain 1 | . 1 . . . Shots Hit Robots 160 | . 53 78 29 . Core Hits 119 | . 28 50 37 4 Critical Kills 1 | . . 1 . . Critical Parts Destroyed . | . . . . . Critical Strikes 1 | . . 1 . . Destroy 1 | . . 1 . . Melee Attacks . | . . . . . Impact . | . . . . . Slashing . | . . . . . Piercing . | . . . . . Sneak Attacks . | . . . . . Combat Hostiles . | . . . . . Follow-up Attacks . | . . . . . Damage Inflicted 3064 | . 723 1714 512 115 Guns 1261 | . 443 683 135 . Cannons 508 | . . 181 327 . Explosions 1130 | . 280 850 . . Melee . | . . . . . Ramming 134 | . . . 19 115 Kinetic 1611 | . 420 864 327 . Thermal 189 | . 23 . 166 . Explosive 1075 | . 280 795 . . Electromagnetic 55 | . . 55 . . Impact . | . . . . . Slashing . | . . . . . Piercing . | . . . . . Highest Corruption 2 | . . . . 2 Average Corruption 2 | . . . . 2 Corruption Purged . | . . . . . Corruption Blocked . | . . . . . Effects 2 | . . . . 2 Message Errors 1 | . . . . 1 Matter Fused 1 | . . . . 1 Overload Shots . | . . . . . Overflow Damage 45 | . 10 27 8 . Projectiles . | . . . . . Explosions 45 | . 10 27 8 . Melee . | . . . . . Knockbacks 14 | . . 2 11 1 Impact 1 | . . . . 1 Kinetic 11 | . . 2 9 . Secondary 2 | . . . 2 . Self-Inflicted Damage 266 | . 87 90 75 14 Shots 10 | . 3 4 3 . Rammed . | . . . . . Targets Rammed 56 | . . . 3 53 Kicked 56 | . . . 3 53 Crushed . | . . . . . Highest Temperature 90 | . 40 25 90 1 Average Temperature 21 | . 15 9 38 1 Received Heat Transfer 711 | . 36 357 84 234 Siege Activations . | . . . . . Robots Corrupted . | . . . . . Combat Hostiles . | . . . . . Parts Fried . | . . . . . Impact Corruptions . | . . . . . Robots Melted . | . . . . . Combat Hostiles . | . . . . . Parts Melted 1 | . . . 1 . Heat Transferred 346 | . 50 . 296 . Parts Sabotaged . | . . . . . Parts Stolen . | . . . . . Parts Stripped . | . . . . . Power Chain Reactions . | . . . . . Alert | -11 -10 -9 -9 -8 ------- Run | Yrd Mat Mat Min Mat Peak Influence 624 | . 343 624 343 57 Initial 243 | . . 144 243 41 Average 247 | . 199 405 229 43 Maximum Alert Level 2 | . 1 2 1 . Low Security (%) 48 | 100 52 11 54 100 Level 1 32 | . 47 21 45 . Level 2 19 | . . 66 . . Level 3 . | . . . . . Level 4 . | . . . . . Level 5 . | . . . . . High Security . | . . . . . Max Security . | . . . . . Squads Dispatched 6 | . 2 4 . . Investigation 3 | . 2 1 . . Extermination . | . . . . . Reinforcement 3 | . . 3 . . Assault . | . . . . . Garrison . | . . . . . Intercept . | . . . . . Searches Triggered . | . . . . . Construction Impeded 1 | . . 1 . . Haulers Reinforced . | . . . . . Active Scanning Responses . | . . . . . Cargo Convoy Interrupts . | . . . . . Stealth | -11 -10 -9 -9 -8 --------- Run | Yrd Mat Mat Min Mat Distress Signals 5 | . 2 2 1 . Communications Jammed . | . . . . . Distress Signals . | . . . . . Times Spotted 54 | . 15 28 8 3 Peak Tracking Total 5 | . 5 4 3 4 Tactical Retreats . | . . . . . Traps | -11 -10 -9 -9 -8 ------- Run | Yrd Mat Mat Min Mat Traps Triggered 2 | . 1 1 . . Indirectly . | . . . . . Trap Hack Attempts . | . . . . . Triggered . | . . . . . Disarmed . | . . . . . Reprogrammed . | . . . . . Reused . | . . . . . Traps Extracted . | . . . . . Installed . | . . . . . Triggered . | . . . . . Machines | -11 -10 -9 -9 -8 ---------- Run | Yrd Mat Mat Min Mat Machines Disabled 4 | . . 4 . . Max in Single Turn 2 | . . 2 . . Machines Repaired . | . . . . . Machines Dismantled . | . . . . . Machines Sabotaged . | . . . . . Overloaded Fab Kills . | . . . . . Hacking | -11 -10 -9 -9 -8 --------- Run | Yrd Mat Mat Min Mat Machines Accessed 4 | . 2 1 . 1 Terminals 4 | . 2 1 . 1 Fabricators . | . . . . . Repair Stations . | . . . . . Recycling Units . | . . . . . Scanalyzers . | . . . . . Garrison Access . | . . . . . Total Hacks 12 | . 6 4 . 2 Successful 3 | . 3 . . . Failed 9 | . 3 4 . 2 Catastrophic 2 | . 1 1 . . Database Lockouts . | . . . . . Manual 10 | . 4 4 . 2 Terminals 12 | . 6 4 . 2 Fabricators . | . . . . . Repair Stations . | . . . . . Recycling Units . | . . . . . Scanalyzers . | . . . . . Garrison Access . | . . . . . Terminal Hacks 3 | . 3 . . . Prototype ID Bank 1 | . 1 . . . Locate Traps 1 | . 1 . . . Transport Status 1 | . 1 . . . Fabricator Hacks . | . . . . . Repair Station Hacks . | . . . . . Recycling Unit Hacks . | . . . . . Scanalyzer . | . . . . . Garrison Access Hacks . | . . . . . Unauthorized Hacks . | . . . . . Terminals . | . . . . . Fabricators . | . . . . . Repair Stations . | . . . . . Recycling Units . | . . . . . Scanalyzers . | . . . . . Garrison Access . | . . . . . Data Cores Recovered . | . . . . . Used . | . . . . . Hacking Detections 3 | . 1 1 . 1 Full Trace Events 2 | . 1 1 . . Feedback Events . | . . . . . Feedback Blocked . | . . . . . Robot Schematics Acquired . | . . . . . Robots Built . | . . . . . Authchips . | . . . . . Time . | . . . . . Total Robot Build Rating . | . . . . . Part Schematics Acquired . | . . . . . Parts Built . | . . . . . Authchips . | . . . . . Time . | . . . . . Total Part Build Rating . | . . . . . Parts Repaired . | . . . . . Time . | . . . . . Parts Recycled . | . . . . . Recycled Matter . | . . . . . Retrieved Matter . | . . . . . Retrieved Components . | . . . . . Parts Scanalyzed . | . . . . . Part Schematics Acquired . | . . . . . Parts Damaged . | . . . . . Bothacking | -11 -10 -9 -9 -8 ------------ Run | Yrd Mat Mat Min Mat Used RIF Installer . | . . . . . Robots Hacked . | . . . . . Non-combat . | . . . . . Combat . | . . . . . Robot Hacks Applied . | . . . . . Relay Couplers Released . | . . . . . Fabnet Peak Effective % . | . . . . . Robots Rewired . | . . . . . Allies Hacked . | . . . . . Hacks Repelled . | . . . . . Allies | -11 -10 -9 -9 -8 -------- Run | Yrd Mat Mat Min Mat Total Allies . | . . . . . Largest Group . | . . . . . Highest-Rated Group . | . . . . . Highest-Rated Ally . | . . . . . Total Orders . | . . . . . Ally Attacks . | . . . . . Total Damage . | . . . . . Kills . | . . . . . Allies Corrupted . | . . . . . Allies Melted . | . . . . . Intel | -11 -10 -9 -9 -8 ------- Run | Yrd Mat Mat Min Mat Robot Analysis Total . | . . . . . Derelict Logs Recovered 1 | . . . 1 . Drone Launches . | . . . . . Drone Recoveries . | . . . . . Exploration | -11 -10 -9 -9 -8 ------------- Run | Yrd Mat Mat Min Mat Turns Passed 2191 | 75 374 626 887 229 Spaces Moved 1241 | 54 193 342 522 130 Core 3 | 3 . . . . Treads . | . . . . . Legs 1238 | 51 193 342 522 130 Wheels . | . . . . . Hover . | . . . . . Flight . | . . . . . Fastest Speed 50 | 50 120 120 120 120 Average Speed 120 | 116 120 120 120 120 Slowest Speed 190 | 120 120 190 120 120 Overloaded Moves . | . . . . . Propulsion Burnouts . | . . . . . Robots Hopped . | . . . . . Cave-ins Triggered . | . . . . . Exploration Rate (%) 35 | 4 30 45 86 10 Regions Visited 4 Branch Regions 1 Pre-discovered Areas . | . . . . . Known Exits Taken 2 | . . 1 1 . Unknown Exits Taken 2 | 1 1 . . . Scrap Searched 1 | . . . 1 . Spaces Dug 35 | . . . 35 . Terrain Destroyed 140 | . 39 50 51 . Melee . | . . . . . Projectile . | . . . . . AOE 140 | . 39 50 51 . Terrain Rammed 1 | . . . . 1 Walls Destroyed 1 | . . . . 1 Machines Disabled . | . . . . . Actions | -11 -10 -9 -9 -8 --------- Run | Yrd Mat Mat Min Mat Total 1684 | 63 262 450 718 191 Wait 146 | . . 4 142 . Move 1237 | 53 192 341 521 130 Hop . | . . . . . Pick Up 18 | 4 6 4 2 2 Fast Attach 22 | 6 5 8 2 1 Attach 9 | . 1 5 1 2 Detach . | . . . . . Swap 20 | . 4 6 9 1 Drop 26 | . 7 13 5 1 Fire 149 | . 47 69 33 . Melee . | . . . . . Ram 1 | . . . . 1 Kick 56 | . . . 3 53 Crush . | . . . . . Escape Stasis . | . . . . . Rewire . | . . . . . Trap . | . . . . . Miscellaneous . | . . . . . Route ------- -11/Scrapyard -10/Materials -9/Materials -9/Mines -8/Materials History --------- Turn | Location | Event 17 | -11/Scrapyard | Discovered new exit (range 16) 76 | -11/Scrapyard | Entered Materials 315 | -10/Materials | Build established: Mutant 384 | -10/Materials | Discovered new exit (range 10) 450 | -10/Materials | Entered another Materials area 450 | -9/Materials | Evolved 2 slots: Utility x2 858 | -9/Materials | Build established: Scavenger-Skirmisher 1070 | -9/Materials | Discovered new exit (range 6) 1075 | -9/Materials | Identified exit to Mines 1076 | -9/Materials | Entered Mines 1201 | -9/Mines | YI-UF0 nonchalantly dropped a Grenade Launcher on the ground 1295 | -9/Mines | Found a damaged Exp. Sensor Array with a note attached 1298 | -9/Mines | Found Prototype Device 1298 | -9/Mines | Identified Exp. Sensor Array 1543 | -9/Mines | Learned Materials terminal intel 1585 | -9/Mines | Build established: Scavenger-Mutant 1630 | -9/Mines | Excavation squad dispatched 1630 | -9/Mines | A large section of the Mines collapsed 1880 | -9/Mines | Excavation squad dispatched 1904 | -9/Mines | Core integrity fell below 50% 1951 | -9/Mines | Discovered new exit (range 7) 1957 | -9/Mines | Identified exit to Materials 1963 | -9/Mines | Entered Materials 1963 | -8/Materials | Evolved 2 slots: Propulsion x2 1964 | -8/Materials | Loaded intel: 10 terminal locations 2192 | -8/Materials | Self-destructed Last Messages --------------- 02159_ Kicked Y-45 Defender. 02159_ Critical hit (Burn: +37). 02161_ Kicked Y-45 Defender. 02163_ Kicked Y-45 Defender out of the way. 02164_ Kicked Y-45 Defender. 02169_ Kicked Y-45 Defender out of the way. 02170_ Kicked Y-45 Defender. 02171_ Ion Engine destroyed. 02174_ Kicked Y-45 Defender. 02179_ Kicked Y-45 Defender out of the way. 02180_ Kicked Y-45 Defender. 02181_ Kicked Y-45 Defender out of the way. 02182_ Kicked Y-45 Defender. 02183_ Kicked Y-45 Defender out of the way. 02183_ Imp. Targeting Computer destroyed. 02186_ Critical hit (Burn: +37). 02187_ Kicked Y-45 Defender out of the way. 02189_ Kicked Y-45 Defender. 02191_ Kicked Y-45 Defender out of the way. 02192_ Aluminum Leg destroyed. Map ----- +----------------------------------------------------+ | | | | | | | | | | | | | | | | | | | | | | | | | | | | | | | | | | | | | ???????????????????????###?????????????????? | | ?????????????????????### ####??????????????? | | ?????????????????????#! #??????????????? | | ????????????????????x# ""#??????????????? | | ???????????########### !! T"#??????????????? | | ???? g b ""#??????????????? | | ???????????######### # Y #??????????????? | | ???????????????????#x# @ #??????????????? | | ????????????######## ########??????????????? | | ?""?????????# # #?????????????????????? | | ?T"?????????# # #?????????????????????? | | ?""?????????# """ + #?????????????????????? | | ????????????# """ #x#?????????????????????? | | ????????????# """ # #?????????????????????? | | ????????????# # #?????????#####???????? | | ????????????########+#####?????# #???????? | | ????????????????# #?????# #???????? | | ????????????????# #?????# #???????? | | ????????????????# x #?????# #???????? | | ????????????????# x #?????# ######### | | ????????????????# #?????# # # | | ????????????????# #?????# # " # | | ????????????????# #?????# # """ # | | ????????????????# #?????# # """ # | | ????????????????# #?????# # """ # | | ????????????##+######+########## + "" # | | ??????? # """ # | | ??????? # "" # | | ??????? # "" # | | ????????####################+####### " # | | ???????????????????????????# ## !# | | ???????????????????????????# T ########## | +----------------------------------------------------+ Best States ------------- Heat Dissipation 31 Energy Generation 14 Energy Capacity 250 Matter Stores 300 Matter Capacity 300 Sight Range 18 Robot Scan Range 20 Terrain Scan Density 10 Evasion (%) 55 Targeting Accuracy 6 Item Schematics ----------------- None Robot Schematics ------------------ None Fabricated ------------ Nothing Alien Tech Used ----------------- None Achievements -------------- More Dakka Please Challenges ------------ None Game ------ Seed StasisDataStreamer Manual? 0 Play Time 00:27:13 Cumulative 8.4 hours Start 2024.08.04 @ 12:07:20 End 2024.08.04 @ 12:41:44 Sessions 1 Manual Loads 0 Difficulty Rogue Special Mode None Game No. 26 Rogue 26 Adventurer 0 Explorer 0 Win Type - Total 0 Types 0/0/0/0/0/0/0/0/0 Lore% 8 Gallery% 17 Achievement% 16 Wizard Run 0 Options --------- Layout 1 ASCII 0 Keyboard 0 Movement Mouse Keybinds 0 Fullscreen 1 Font 24/Smallcaps Map View 50x35 Zoom Use 0% Tactical HUD 1 Map Filters NONE Filters NONE Steam 1 RUN: 3d9f9339-bec7-4ef5-a881-da8007fb3604